[Event "Titled Tuesday Blitz August 22 Early 2023"]
[White "Kalaiyalahan, Akshaya"]
[Black "Hnydiuk, Aleksander"]
[WhiteFideId "422894"]
[BlackFideId "1109057"]
[WhiteElo "2234"]
[BlackElo "2558"]
[Result "0-1"]
[Round "1"]
[TimeControl "180+1"]
[Date "2023.08.22"]
[WhiteClock "0:00:00"]
[BlackClock "0:00:04"]
[Board "209"]

1. e4 {[%clk 0:02:59]}  Nf6 {[%clk 0:02:47]} 2. e5 {[%clk 0:02:58]}  Nd5 {[%clk 0:02:47]} 3. d4 {[%clk 0:02:58]}  d6 {[%clk 0:02:47]} 4. c4 {[%clk 0:02:57]}  Nb6 {[%clk 0:02:47]} 5. Nf3 {[%clk 0:02:56]}  Bg4 {[%clk 0:02:45]} 6. exd6 {[%clk 0:02:55]}  exd6 {[%clk 0:02:44]} 7. Be2 {[%clk 0:02:44]}  Be7 {[%clk 0:02:43]} 8. O-O {[%clk 0:02:43]}  Nc6 {[%clk 0:02:42]} 9. b3 {[%clk 0:02:40]}  O-O {[%clk 0:02:40]} 10. Bb2 {[%clk 0:02:40]}  Bf6 {[%clk 0:02:39]} 11. Nbd2 {[%clk 0:02:37]}  d5 {[%clk 0:02:35]} 12. c5 {[%clk 0:02:12]}  Nd7 {[%clk 0:02:35]} 13. h3 {[%clk 0:02:11]}  Bh5 {[%clk 0:02:27]} 14. a3 {[%clk 0:02:09]}  Nxc5 {[%clk 0:02:24]} 15. b4 {[%clk 0:01:59]}  Ne4 {[%clk 0:02:21]} 16. Ne5 {[%clk 0:01:55]}  Bxe2 {[%clk 0:02:11]} 17. Qxe2 {[%clk 0:01:55]}  Bxe5 {[%clk 0:01:53]} 18. dxe5 {[%clk 0:01:50]}  Nxd2 {[%clk 0:01:52]} 19. Qxd2 {[%clk 0:01:49]}  Qd7 {[%clk 0:01:31]} 20. Rad1 {[%clk 0:01:37]}  Rad8 {[%clk 0:01:30]} 21. Qg5 {[%clk 0:01:31]}  h6 {[%clk 0:01:18]} 22. Qg3 {[%clk 0:01:29]}  Qf5 {[%clk 0:01:12]} 23. b5 {[%clk 0:01:20]}  Ne7 {[%clk 0:01:09]} 24. e6 {[%clk 0:01:17]}  Ng6 {[%clk 0:01:05]} 25. e7 {[%clk 0:01:03]}  Rfe8 {[%clk 0:00:55]} 26. exd8=Q {[%clk 0:01:01]}  Rxd8 {[%clk 0:00:56]} 27. Qxc7 {[%clk 0:01:00]}  Rd7 {[%clk 0:00:55]} 28. Qc8+ {[%clk 0:00:59]}  Kh7 {[%clk 0:00:55]} 29. Qc3 {[%clk 0:00:26]}  f6 {[%clk 0:00:48]} 30. Qd3 {[%clk 0:00:25]}  Qh5 {[%clk 0:00:43]} 31. g4 {[%clk 0:00:22]}  Qg5 {[%clk 0:00:33]} 32. Qf5 {[%clk 0:00:18]}  Qh4 {[%clk 0:00:25]} 33. Kh2 {[%clk 0:00:17]}  Re7 {[%clk 0:00:22]} 34. Rxd5 {[%clk 0:00:15]}  Re2 {[%clk 0:00:19]} 35. Bd4 {[%clk 0:00:15]}  Rd2 {[%clk 0:00:11]} 36. Rd7 {[%clk 0:00:14]}  Qg5 {[%clk 0:00:08]} 37. Qxg5 {[%clk 0:00:14]}  hxg5 {[%clk 0:00:09]} 38. Kg3 {[%clk 0:00:10]}  Nf4 {[%clk 0:00:09]} 39. Rxb7 {[%clk 0:00:07]}  Ne2+ {[%clk 0:00:08]} 40. Kg2 {[%clk 0:00:07]}  Nf4+ {[%clk 0:00:06]} 41. Kh2 {[%clk 0:00:05]}  Rxd4 {[%clk 0:00:06]} 42. Rxa7 {[%clk 0:00:05]}  Rd3 {[%clk 0:00:06]} 43. f3 {[%clk 0:00:06]}  Rd2+ {[%clk 0:00:06]} 44. Kh1 {[%clk 0:00:06]}  Ne2 {[%clk 0:00:05]} 45. Rg1 {[%clk 0:00:03]}  Nf4 {[%clk 0:00:03]} 46. a4 {[%clk 0:00:02]}  Nxh3 {[%clk 0:00:03]} 47. Rg2 {[%clk 0:00:01]}  Rd1+ {[%clk 0:00:03]} 48. Kh2 {[%clk 0:00:00]}  Nf4 {[%clk 0:00:04]} 0-1


[Site "https://www.chess.com"]

[Event "Titled Tuesday Blitz August 22 Early 2023"]
[White "TimGrutter03"]
[Black "Miguelitro69"]
[WhiteElo "2558"]
[BlackElo "2231"]
[Result "1-0"]
[Round "1"]
[TimeControl "180+1"]
[Date "2023.08.22"]
[WhiteClock "0:01:27"]
[BlackClock "0:00:44"]
[Board "210"]

1. Nf3 {[%clk 0:03:00]}  c5 {[%clk 0:02:58]} 2. c4 {[%clk 0:03:01]}  Nc6 {[%clk 0:02:58]} 3. g3 {[%clk 0:03:02]}  g6 {[%clk 0:02:58]} 4. Bg2 {[%clk 0:03:03]}  Bg7 {[%clk 0:02:59]} 5. O-O {[%clk 0:03:03]}  Nf6 {[%clk 0:02:59]} 6. d4 {[%clk 0:03:03]}  cxd4 {[%clk 0:02:59]} 7. Nxd4 {[%clk 0:03:04]}  O-O {[%clk 0:02:59]} 8. Nc3 {[%clk 0:03:04]}  a6 {[%clk 0:02:58]} 9. e4 {[%clk 0:03:03]}  Nxe4 {[%clk 0:02:45]} 10. Nxc6 {[%clk 0:03:03]}  Nxc3 {[%clk 0:02:45]} 11. Nxd8 {[%clk 0:02:40]}  Nxd1 {[%clk 0:02:45]} 12. Nxf7 {[%clk 0:02:41]}  Nxf2 {[%clk 0:02:30]} 13. Nh6+ {[%clk 0:02:30]}  Kh8 {[%clk 0:02:20]} 14. Rxf2 {[%clk 0:02:30]}  Bd4 {[%clk 0:02:20]} 15. Ng4 {[%clk 0:02:30]}  Bxf2+ {[%clk 0:01:55]} 16. Nxf2 {[%clk 0:02:31]}  d6 {[%clk 0:01:54]} 17. Bh6 {[%clk 0:02:24]}  Rf5 {[%clk 0:01:49]} 18. g4 {[%clk 0:02:11]}  Rf7 {[%clk 0:01:47]} 19. Bd5 {[%clk 0:02:06]}  e6 {[%clk 0:01:47]} 20. Be4 {[%clk 0:02:05]}  Rb8 {[%clk 0:01:36]} 21. Rd1 {[%clk 0:02:04]}  Rd7 {[%clk 0:01:30]} 22. Bf4 {[%clk 0:02:01]}  e5 {[%clk 0:01:27]} 23. Bg5 {[%clk 0:02:01]}  Kg7 {[%clk 0:01:24]} 24. b3 {[%clk 0:01:48]}  h6 {[%clk 0:01:24]} 25. Be3 {[%clk 0:01:47]}  b5 {[%clk 0:01:22]} 26. Bc6 {[%clk 0:01:46]}  Rc7 {[%clk 0:01:12]} 27. Rxd6 {[%clk 0:01:45]}  bxc4 {[%clk 0:01:13]} 28. bxc4 {[%clk 0:01:45]}  Rb2 {[%clk 0:01:10]} 29. Nd3 {[%clk 0:01:40]}  Rc2 {[%clk 0:01:07]} 30. Nxe5 {[%clk 0:01:38]}  Re2 {[%clk 0:01:01]} 31. Bd4 {[%clk 0:01:38]}  Kh7 {[%clk 0:00:59]} 32. Be8 {[%clk 0:01:32]}  Rxe5 {[%clk 0:00:55]} 33. Bxg6+ {[%clk 0:01:28]}  Kg8 {[%clk 0:00:52]} 34. Rd8+ {[%clk 0:01:25]}  Kg7 {[%clk 0:00:51]} 35. Bxe5+ {[%clk 0:01:25]}  Kxg6 {[%clk 0:00:50]} 36. Bxc7 {[%clk 0:01:26]}  Bxg4 {[%clk 0:00:49]} 37. Rg8+ {[%clk 0:01:25]}  Kf5 {[%clk 0:00:48]} 38. Rxg4 {[%clk 0:01:26]}  Kxg4 {[%clk 0:00:44]} 39. c5 {[%clk 0:01:27]} 1-0


[Site "https://www.chess.com"]

[Event "Titled Tuesday Blitz August 22 Early 2023"]
[White "Luxama, Jacques Muller"]
[Black "Postlmayer, Jakob"]
[WhiteFideId "11900113"]
[BlackFideId "1643622"]
[WhiteElo "2225"]
[BlackElo "2553"]
[Result "0-1"]
[Round "1"]
[TimeControl "180+1"]
[Date "2023.08.22"]
[WhiteClock "0:00:14"]
[BlackClock "0:00:42"]
[Board "215"]

1. e4 {[%clk 0:02:59]}  c6 {[%clk 0:02:58]} 2. d4 {[%clk 0:02:58]}  d5 {[%clk 0:02:59]} 3. Nc3 {[%clk 0:02:53]}  dxe4 {[%clk 0:02:59]} 4. Nxe4 {[%clk 0:02:53]}  Nf6 {[%clk 0:02:59]} 5. Nxf6+ {[%clk 0:02:53]}  exf6 {[%clk 0:03:00]} 6. c3 {[%clk 0:02:53]}  Bd6 {[%clk 0:03:00]} 7. Bd3 {[%clk 0:02:53]}  O-O {[%clk 0:03:00]} 8. Qc2 {[%clk 0:02:53]}  Re8+ {[%clk 0:03:01]} 9. Ne2 {[%clk 0:02:53]}  h5 {[%clk 0:03:01]} 10. Be3 {[%clk 0:02:52]}  Nd7 {[%clk 0:03:00]} 11. O-O-O {[%clk 0:02:51]}  Nf8 {[%clk 0:03:00]} 12. Kb1 {[%clk 0:02:51]}  Be6 {[%clk 0:02:59]} 13. c4 {[%clk 0:02:46]}  Rc8 {[%clk 0:02:58]} 14. Nc3 {[%clk 0:02:40]}  Bb4 {[%clk 0:02:57]} 15. a3 {[%clk 0:02:37]}  Bxc3 {[%clk 0:02:56]} 16. Qxc3 {[%clk 0:02:38]}  b5 {[%clk 0:02:56]} 17. Qb4 {[%clk 0:02:21]}  a5 {[%clk 0:02:39]} 18. Qc3 {[%clk 0:02:18]}  bxc4 {[%clk 0:02:20]} 19. Bxc4 {[%clk 0:02:18]}  Bd5 {[%clk 0:02:05]} 20. Rhg1 {[%clk 0:02:09]}  Rb8 {[%clk 0:02:02]} 21. h4 {[%clk 0:01:54]}  Qd6 {[%clk 0:02:00]} 22. Bxd5 {[%clk 0:01:47]}  Qxd5 {[%clk 0:01:55]} 23. Rc1 {[%clk 0:01:43]}  Rec8 {[%clk 0:01:43]} 24. Qc4 {[%clk 0:01:41]}  Qf5+ {[%clk 0:01:40]} 25. Ka1 {[%clk 0:01:40]}  Ne6 {[%clk 0:01:37]} 26. Rc3 {[%clk 0:01:18]}  Rb5 {[%clk 0:01:33]} 27. Rgc1 {[%clk 0:01:12]}  Rcb8 {[%clk 0:01:32]} 28. R1c2 {[%clk 0:01:08]}  R5b6 {[%clk 0:01:15]} 29. Qd3 {[%clk 0:01:03]}  Qd5 {[%clk 0:01:13]} 30. f3 {[%clk 0:00:56]}  Rd8 {[%clk 0:01:03]} 31. Qe4 {[%clk 0:00:45]}  Qxe4 {[%clk 0:00:58]} 32. fxe4 {[%clk 0:00:44]}  Nxd4 {[%clk 0:00:53]} 33. Bxd4 {[%clk 0:00:44]}  Rxd4 {[%clk 0:00:52]} 34. Rxc6 {[%clk 0:00:44]}  Rxc6 {[%clk 0:00:52]} 35. Rxc6 {[%clk 0:00:45]}  Rxe4 {[%clk 0:00:52]} 36. Rc5 {[%clk 0:00:45]}  Rxh4 {[%clk 0:00:51]} 37. Rxa5 {[%clk 0:00:45]}  g5 {[%clk 0:00:51]} 38. Rf5 {[%clk 0:00:43]}  Kg7 {[%clk 0:00:51]} 39. Ka2 {[%clk 0:00:39]}  Rh2 {[%clk 0:00:46]} 40. Rf2 {[%clk 0:00:38]}  h4 {[%clk 0:00:46]} 41. a4 {[%clk 0:00:26]}  h3 {[%clk 0:00:45]} 42. a5 {[%clk 0:00:25]}  hxg2 {[%clk 0:00:44]} 43. a6 {[%clk 0:00:19]}  g1=Q {[%clk 0:00:43]} 44. a7 {[%clk 0:00:18]}  Qxf2 {[%clk 0:00:42]} 45. a8=Q {[%clk 0:00:14]}  Qxb2# {[%clk 0:00:42]} 0-1


[Site "https://www.chess.com"]

[Event "Titled Tuesday Blitz August 22 Early 2023"]
[White "FoxOnTheRun97"]
[Black "Thiel, Thomas"]
[BlackFideId "4615964"]
[WhiteElo "2552"]
[BlackElo "2224"]
[Result "1-0"]
[Round "1"]
[TimeControl "180+1"]
[Date "2023.08.22"]
[WhiteClock "0:00:17"]
[BlackClock "0:00:00"]
[Board "216"]

1. d4 {[%clk 0:03:00]}  d5 {[%clk 0:02:59]} 2. c4 {[%clk 0:03:01]}  dxc4 {[%clk 0:02:58]} 3. Nf3 {[%clk 0:02:59]}  Nf6 {[%clk 0:02:57]} 4. e3 {[%clk 0:02:57]}  Bg4 {[%clk 0:02:56]} 5. Bxc4 {[%clk 0:02:57]}  e6 {[%clk 0:02:56]} 6. h3 {[%clk 0:02:56]}  Bh5 {[%clk 0:02:54]} 7. Nbd2 {[%clk 0:02:53]}  Nc6 {[%clk 0:02:50]} 8. a3 {[%clk 0:02:49]}  Bd6 {[%clk 0:02:45]} 9. b4 {[%clk 0:02:47]}  O-O {[%clk 0:02:44]} 10. Bb2 {[%clk 0:02:45]}  Qe7 {[%clk 0:02:33]} 11. Qb3 {[%clk 0:02:21]}  e5 {[%clk 0:02:30]} 12. dxe5 {[%clk 0:02:20]}  Nxe5 {[%clk 0:02:29]} 13. Nxe5 {[%clk 0:02:19]}  Bxe5 {[%clk 0:02:29]} 14. O-O {[%clk 0:02:17]}  Rad8 {[%clk 0:02:17]} 15. Qc2 {[%clk 0:01:54]}  Bg6 {[%clk 0:02:07]} 16. Qc1 {[%clk 0:01:54]}  Ne4 {[%clk 0:02:02]} 17. Nf3 {[%clk 0:01:48]}  Bxb2 {[%clk 0:01:36]} 18. Qxb2 {[%clk 0:01:49]}  Qf6 {[%clk 0:01:34]} 19. Qxf6 {[%clk 0:01:41]}  Nxf6 {[%clk 0:01:33]} 20. Rac1 {[%clk 0:01:37]}  c6 {[%clk 0:01:30]} 21. Rfd1 {[%clk 0:01:36]}  Ne4 {[%clk 0:01:29]} 22. Ne5 {[%clk 0:01:31]}  Nd2 {[%clk 0:01:21]} 23. Nxg6 {[%clk 0:01:19]}  hxg6 {[%clk 0:01:18]} 24. Be2 {[%clk 0:01:17]}  Ne4 {[%clk 0:01:12]} 25. Bf3 {[%clk 0:01:17]}  Nf6 {[%clk 0:01:01]} 26. a4 {[%clk 0:01:11]}  a6 {[%clk 0:00:53]} 27. b5 {[%clk 0:01:06]}  axb5 {[%clk 0:00:54]} 28. axb5 {[%clk 0:01:07]}  cxb5 {[%clk 0:00:53]} 29. Bxb7 {[%clk 0:01:07]}  Rb8 {[%clk 0:00:50]} 30. Bf3 {[%clk 0:01:03]}  Rfd8 {[%clk 0:00:45]} 31. Rxd8+ {[%clk 0:00:54]}  Rxd8 {[%clk 0:00:46]} 32. Rb1 {[%clk 0:00:55]}  Rb8 {[%clk 0:00:45]} 33. Rb4 {[%clk 0:00:55]}  Ne8 {[%clk 0:00:40]} 34. Kf1 {[%clk 0:00:49]}  Nc7 {[%clk 0:00:37]} 35. Ke2 {[%clk 0:00:48]}  Na6 {[%clk 0:00:35]} 36. Rb2 {[%clk 0:00:45]}  b4 {[%clk 0:00:35]} 37. Bd5 {[%clk 0:00:44]}  Nc5 {[%clk 0:00:27]} 38. e4 {[%clk 0:00:42]}  Kf8 {[%clk 0:00:26]} 39. Ke3 {[%clk 0:00:42]}  Ke7 {[%clk 0:00:26]} 40. Kd4 {[%clk 0:00:42]}  Nd7 {[%clk 0:00:24]} 41. f4 {[%clk 0:00:38]}  f6 {[%clk 0:00:23]} 42. Ra2 {[%clk 0:00:35]}  Kd6 {[%clk 0:00:10]} 43. Ra6+ {[%clk 0:00:33]}  Ke7 {[%clk 0:00:10]} 44. Bb3 {[%clk 0:00:31]}  Nb6 {[%clk 0:00:08]} 45. Kc5 {[%clk 0:00:27]}  Nc8 {[%clk 0:00:08]} 46. Ra4 {[%clk 0:00:25]}  Nd6 {[%clk 0:00:06]} 47. Ra7+ {[%clk 0:00:22]}  Rb7 {[%clk 0:00:04]} 48. Rxb7+ {[%clk 0:00:21]}  Nxb7+ {[%clk 0:00:05]} 49. Kxb4 {[%clk 0:00:19]}  Nd6 {[%clk 0:00:05]} 50. Bd5 {[%clk 0:00:19]}  g5 {[%clk 0:00:04]} 51. fxg5 {[%clk 0:00:16]}  fxg5 {[%clk 0:00:00]} 52. Kc5 {[%clk 0:00:17]} 1-0


[Site "https://www.chess.com"]

[Event "Titled Tuesday Blitz August 22 Early 2023"]
[White "ArmanGhevondyanchess"]
[Black "Yelisieiev, Yevhenii"]
[BlackFideId "14139642"]
[WhiteElo "2216"]
[BlackElo "2547"]
[Result "0-1"]
[Round "1"]
[TimeControl "180+1"]
[Date "2023.08.22"]
[WhiteClock "0:00:11"]
[BlackClock "0:00:05"]
[Board "219"]

1. Nf3 {[%clk 0:02:58]}  d6 {[%clk 0:02:59]} 2. d4 {[%clk 0:02:59]}  Nf6 {[%clk 0:03:00]} 3. g3 {[%clk 0:02:59]}  Nbd7 {[%clk 0:03:00]} 4. Bg2 {[%clk 0:03:00]}  e5 {[%clk 0:03:01]} 5. O-O {[%clk 0:02:59]}  e4 {[%clk 0:03:01]} 6. Ne1 {[%clk 0:03:00]}  d5 {[%clk 0:03:02]} 7. f3 {[%clk 0:03:00]}  exf3 {[%clk 0:02:59]} 8. exf3 {[%clk 0:02:57]}  Be7 {[%clk 0:02:59]} 9. Nd3 {[%clk 0:02:54]}  O-O {[%clk 0:02:57]} 10. c3 {[%clk 0:02:53]}  Re8 {[%clk 0:02:55]} 11. Re1 {[%clk 0:02:50]}  b6 {[%clk 0:02:50]} 12. Nd2 {[%clk 0:02:40]}  Bb7 {[%clk 0:02:49]} 13. Nf1 {[%clk 0:02:39]}  c5 {[%clk 0:02:48]} 14. Be3 {[%clk 0:02:37]}  Rc8 {[%clk 0:02:46]} 15. Bf2 {[%clk 0:02:37]}  Nf8 {[%clk 0:02:35]} 16. Ne5 {[%clk 0:02:35]}  Ne6 {[%clk 0:02:34]} 17. Qd2 {[%clk 0:02:29]}  h5 {[%clk 0:02:22]} 18. Rad1 {[%clk 0:02:28]}  h4 {[%clk 0:02:20]} 19. Bh3 {[%clk 0:02:23]}  hxg3 {[%clk 0:02:16]} 20. hxg3 {[%clk 0:02:19]}  Bd6 {[%clk 0:02:14]} 21. Kg2 {[%clk 0:02:09]}  a5 {[%clk 0:02:07]} 22. Ne3 {[%clk 0:02:08]}  cxd4 {[%clk 0:02:06]} 23. cxd4 {[%clk 0:01:59]}  Bb4 {[%clk 0:02:06]} 24. Qd3 {[%clk 0:01:59]}  Bxe1 {[%clk 0:02:03]} 25. Rxe1 {[%clk 0:01:58]}  Rc7 {[%clk 0:01:42]} 26. Rh1 {[%clk 0:01:56]}  Ng5 {[%clk 0:01:36]} 27. Bf5 {[%clk 0:01:51]}  Qd6 {[%clk 0:00:54]} 28. a3 {[%clk 0:01:35]}  Rxe5 {[%clk 0:00:45]} 29. dxe5 {[%clk 0:01:36]}  Qxe5 {[%clk 0:00:45]} 30. Re1 {[%clk 0:01:25]}  Nxf3 {[%clk 0:00:34]} 31. Kxf3 {[%clk 0:01:10]}  d4+ {[%clk 0:00:34]} 32. Ke2 {[%clk 0:01:11]}  dxe3 {[%clk 0:00:29]} 33. Bxe3 {[%clk 0:01:08]}  Qxb2+ {[%clk 0:00:28]} 34. Bd2 {[%clk 0:01:06]}  Re7+ {[%clk 0:00:27]} 35. Kf2 {[%clk 0:01:06]}  Rxe1 {[%clk 0:00:26]} 36. Kxe1 {[%clk 0:01:05]}  Qe5+ {[%clk 0:00:25]} 37. Kf2 {[%clk 0:01:03]}  Qc5+ {[%clk 0:00:14]} 38. Be3 {[%clk 0:01:02]}  Qc6 {[%clk 0:00:10]} 39. Ke2 {[%clk 0:00:55]}  g6 {[%clk 0:00:09]} 40. Bh3 {[%clk 0:00:41]}  Qf3+ {[%clk 0:00:08]} 41. Kd2 {[%clk 0:00:39]}  Qxg3 {[%clk 0:00:07]} 42. Bf1 {[%clk 0:00:35]}  Ne4+ {[%clk 0:00:06]} 43. Kc2 {[%clk 0:00:33]}  Qc7+ {[%clk 0:00:06]} 44. Kb2 {[%clk 0:00:31]}  Nc5 {[%clk 0:00:05]} 45. Qc4 {[%clk 0:00:27]}  Ne6 {[%clk 0:00:04]} 46. Qxc7 {[%clk 0:00:26]}  Nxc7 {[%clk 0:00:05]} 47. Bxb6 {[%clk 0:00:27]}  Nd5 {[%clk 0:00:04]} 48. Bxa5 {[%clk 0:00:27]}  g5 {[%clk 0:00:03]} 49. Bg2 {[%clk 0:00:20]}  f5 {[%clk 0:00:02]} 50. Kb3 {[%clk 0:00:19]}  Kf7 {[%clk 0:00:02]} 51. Bd8 {[%clk 0:00:17]}  g4 {[%clk 0:00:02]} 52. Bg5 {[%clk 0:00:17]}  Ke6 {[%clk 0:00:02]} 53. a4 {[%clk 0:00:16]}  Ba6 {[%clk 0:00:03]} 54. a5 {[%clk 0:00:17]}  Ke5 {[%clk 0:00:02]} 55. Bxd5 {[%clk 0:00:16]}  Kxd5 {[%clk 0:00:02]} 56. Kc3 {[%clk 0:00:17]}  Ke4 {[%clk 0:00:02]} 57. Kd2 {[%clk 0:00:17]}  f4 {[%clk 0:00:03]} 58. Ke1 {[%clk 0:00:15]}  g3 {[%clk 0:00:03]} 59. Bh4 {[%clk 0:00:15]}  Kf3 {[%clk 0:00:03]} 60. Be7 {[%clk 0:00:13]}  Kg2 {[%clk 0:00:04]} 61. Bc5 {[%clk 0:00:13]}  f3 {[%clk 0:00:04]} 62. Kd2 {[%clk 0:00:12]}  f2 {[%clk 0:00:04]} 63. Kc3 {[%clk 0:00:13]}  f1=Q {[%clk 0:00:04]} 64. Bd4 {[%clk 0:00:13]}  Qb5 {[%clk 0:00:05]} 65. Kd2 {[%clk 0:00:11]}  Qd3+ {[%clk 0:00:05]} 0-1


[Site "https://www.chess.com"]

[Event "Titled Tuesday Blitz August 22 Early 2023"]
[White "Zhang, Eric"]
[Black "Balint, Vilmos"]
[WhiteFideId "30907667"]
[BlackFideId "718050"]
[WhiteElo "2544"]
[BlackElo "2209"]
[Result "0-1"]
[Round "1"]
[TimeControl "180+1"]
[Date "2023.08.22"]
[WhiteClock "0:00:00"]
[BlackClock "0:01:05"]
[Board "222"]

1. d4 {[%clk 0:03:00]}  Nf6 {[%clk 0:03:00]} 2. c4 {[%clk 0:03:00]}  e6 {[%clk 0:03:00]} 3. Nf3 {[%clk 0:03:00]}  Bb4+ {[%clk 0:03:00]} 4. Nbd2 {[%clk 0:03:00]}  O-O {[%clk 0:03:00]} 5. g3 {[%clk 0:03:01]}  b6 {[%clk 0:02:59]} 6. Bg2 {[%clk 0:03:01]}  Bb7 {[%clk 0:03:00]} 7. O-O {[%clk 0:03:02]}  h6 {[%clk 0:02:54]} 8. a3 {[%clk 0:02:58]}  Be7 {[%clk 0:02:54]} 9. b4 {[%clk 0:02:57]}  a5 {[%clk 0:02:53]} 10. b5 {[%clk 0:02:54]}  d5 {[%clk 0:02:53]} 11. Qc2 {[%clk 0:02:46]}  Nbd7 {[%clk 0:02:53]} 12. Bb2 {[%clk 0:02:44]}  Rc8 {[%clk 0:02:52]} 13. Rac1 {[%clk 0:02:40]}  c5 {[%clk 0:02:52]} 14. bxc6 {[%clk 0:02:37]}  Bxc6 {[%clk 0:02:51]} 15. Qb3 {[%clk 0:02:35]}  Bb7 {[%clk 0:02:49]} 16. Qa2 {[%clk 0:02:12]}  Ba6 {[%clk 0:02:48]} 17. cxd5 {[%clk 0:02:08]}  Nxd5 {[%clk 0:02:40]} 18. Rxc8 {[%clk 0:02:01]}  Qxc8 {[%clk 0:02:40]} 19. Re1 {[%clk 0:02:01]}  Nc3 {[%clk 0:02:32]} 20. Bxc3 {[%clk 0:01:58]}  Qxc3 {[%clk 0:02:33]} 21. Nb1 {[%clk 0:01:45]}  Qc7 {[%clk 0:02:22]} 22. e4 {[%clk 0:01:40]}  Rc8 {[%clk 0:02:21]} 23. d5 {[%clk 0:01:32]}  exd5 {[%clk 0:02:21]} 24. exd5 {[%clk 0:01:33]}  Bc4 {[%clk 0:02:20]} 25. Qd2 {[%clk 0:01:26]}  Nf6 {[%clk 0:02:18]} 26. Nc3 {[%clk 0:01:23]}  Bxa3 {[%clk 0:02:17]} 27. Nd4 {[%clk 0:01:20]}  Bb4 {[%clk 0:02:16]} 28. Re3 {[%clk 0:01:05]}  Qd7 {[%clk 0:02:10]} 29. Qb2 {[%clk 0:00:35]}  Nxd5 {[%clk 0:02:04]} 30. Nxd5 {[%clk 0:00:31]}  Bxd5 {[%clk 0:02:05]} 31. Nf3 {[%clk 0:00:29]}  Bc5 {[%clk 0:01:55]} 32. Rd3 {[%clk 0:00:28]}  Qb7 {[%clk 0:01:56]} 33. h4 {[%clk 0:00:26]}  Be4 {[%clk 0:01:51]} 34. Rc3 {[%clk 0:00:24]}  Rd8 {[%clk 0:01:40]} 35. Qe2 {[%clk 0:00:22]}  a4 {[%clk 0:01:35]} 36. Kh2 {[%clk 0:00:18]}  a3 {[%clk 0:01:34]} 37. Ne1 {[%clk 0:00:17]}  Bxg2 {[%clk 0:01:34]} 38. Nxg2 {[%clk 0:00:18]}  Ra8 {[%clk 0:01:15]} 39. Qa2 {[%clk 0:00:18]}  Qe7 {[%clk 0:01:10]} 40. Ne3 {[%clk 0:00:17]}  Qe6 {[%clk 0:01:08]} 41. Nc4 {[%clk 0:00:00]}  b5 {[%clk 0:01:05]} 0-1


[Site "https://www.chess.com"]

[Event "Titled Tuesday Blitz August 22 Early 2023"]
[White "parintele_chess"]
[Black "Portela Peleteiro, Alberto"]
[BlackFideId "22276106"]
[WhiteElo "2207"]
[BlackElo "2542"]
[Result "1-0"]
[Round "1"]
[TimeControl "180+1"]
[Date "2023.08.22"]
[WhiteClock "0:00:27"]
[BlackClock "0:00:47"]
[Board "225"]

1. d4 {[%clk 0:02:56]}  d5 {[%clk 0:02:59]} 2. Bf4 {[%clk 0:02:55]}  e6 {[%clk 0:02:58]} 3. Nf3 {[%clk 0:02:55]}  Bd6 {[%clk 0:02:56]} 4. e3 {[%clk 0:02:53]}  Nf6 {[%clk 0:02:56]} 5. Nbd2 {[%clk 0:02:50]}  O-O {[%clk 0:02:52]} 6. Bg3 {[%clk 0:02:49]}  b6 {[%clk 0:02:52]} 7. Bd3 {[%clk 0:02:43]}  Ba6 {[%clk 0:02:52]} 8. Ne5 {[%clk 0:02:39]}  Bxe5 {[%clk 0:02:47]} 9. Bxe5 {[%clk 0:02:29]}  Bxd3 {[%clk 0:02:42]} 10. cxd3 {[%clk 0:02:28]}  Nfd7 {[%clk 0:02:42]} 11. Bg3 {[%clk 0:02:24]}  c5 {[%clk 0:02:42]} 12. dxc5 {[%clk 0:02:17]}  Nxc5 {[%clk 0:02:42]} 13. Qe2 {[%clk 0:02:11]}  d4 {[%clk 0:02:11]} 14. e4 {[%clk 0:01:27]}  Nc6 {[%clk 0:02:11]} 15. a3 {[%clk 0:01:11]}  Rc8 {[%clk 0:02:11]} 16. O-O {[%clk 0:01:10]}  Qd7 {[%clk 0:02:07]} 17. Rac1 {[%clk 0:01:05]}  a5 {[%clk 0:02:01]} 18. Nc4 {[%clk 0:00:57]}  Qa7 {[%clk 0:01:51]} 19. Bd6 {[%clk 0:00:50]}  Nb3 {[%clk 0:01:32]} 20. Bxf8 {[%clk 0:00:46]}  Nxc1 {[%clk 0:01:32]} 21. Rxc1 {[%clk 0:00:46]}  Kxf8 {[%clk 0:01:32]} 22. Nd6 {[%clk 0:00:28]}  Rc7 {[%clk 0:00:48]} 23. Nb5 {[%clk 0:00:28]}  Rc8 {[%clk 0:00:47]} 24. Nxa7 {[%clk 0:00:27]}  Nxa7 {[%clk 0:00:48]} 25. Rxc8+ {[%clk 0:00:27]}  Nxc8 {[%clk 0:00:47]} 26. Qc2 {[%clk 0:00:27]} 1-0


[Site "https://www.chess.com"]

[Event "Titled Tuesday Blitz August 22 Early 2023"]
[White "Francisco_Ferrari"]
[Black "Willy, Stephen"]
[BlackFideId "30981468"]
[WhiteElo "2186"]
[BlackElo "2540"]
[Result "0-1"]
[Round "1"]
[TimeControl "180+1"]
[Date "2023.08.22"]
[WhiteClock "0:00:12"]
[BlackClock "0:00:22"]
[Board "229"]

1. e4 {[%clk 0:02:57]}  c6 {[%clk 0:02:57]} 2. d4 {[%clk 0:02:57]}  d5 {[%clk 0:02:56]} 3. exd5 {[%clk 0:02:52]}  cxd5 {[%clk 0:02:55]} 4. Bd3 {[%clk 0:02:39]}  Nc6 {[%clk 0:02:54]} 5. c3 {[%clk 0:02:40]}  Nf6 {[%clk 0:02:47]} 6. Nf3 {[%clk 0:02:37]}  g6 {[%clk 0:02:43]} 7. Nbd2 {[%clk 0:02:36]}  Bg7 {[%clk 0:02:42]} 8. O-O {[%clk 0:02:35]}  O-O {[%clk 0:02:42]} 9. Re1 {[%clk 0:02:35]}  Nd7 {[%clk 0:02:36]} 10. h4 {[%clk 0:02:25]}  e5 {[%clk 0:02:34]} 11. dxe5 {[%clk 0:02:25]}  Ndxe5 {[%clk 0:02:34]} 12. Be2 {[%clk 0:02:21]}  Re8 {[%clk 0:02:28]} 13. Nxe5 {[%clk 0:02:17]}  Nxe5 {[%clk 0:02:25]} 14. Nf3 {[%clk 0:02:16]}  Bf5 {[%clk 0:02:14]} 15. Bg5 {[%clk 0:02:12]}  Qd6 {[%clk 0:02:09]} 16. Nd4 {[%clk 0:02:10]}  Ng4 {[%clk 0:01:47]} 17. Bxg4 {[%clk 0:01:55]}  Rxe1+ {[%clk 0:01:45]} 18. Qxe1 {[%clk 0:01:56]}  Bxg4 {[%clk 0:01:45]} 19. Qe3 {[%clk 0:01:41]}  Bd7 {[%clk 0:01:41]} 20. Re1 {[%clk 0:01:39]}  h6 {[%clk 0:01:30]} 21. Bxh6 {[%clk 0:01:31]}  Re8 {[%clk 0:01:29]} 22. Qxe8+ {[%clk 0:01:31]}  Bxe8 {[%clk 0:01:28]} 23. Rxe8+ {[%clk 0:01:31]}  Kh7 {[%clk 0:01:29]} 24. Bxg7 {[%clk 0:01:23]}  Kxg7 {[%clk 0:01:28]} 25. h5 {[%clk 0:01:20]}  Qa6 {[%clk 0:01:15]} 26. hxg6 {[%clk 0:01:16]}  fxg6 {[%clk 0:01:14]} 27. a3 {[%clk 0:01:08]}  Kf7 {[%clk 0:01:02]} 28. Re5 {[%clk 0:01:00]}  Qd6 {[%clk 0:00:56]} 29. f4 {[%clk 0:01:00]}  Qb6 {[%clk 0:00:47]} 30. b4 {[%clk 0:00:55]}  Qc7 {[%clk 0:00:43]} 31. Nb5 {[%clk 0:00:39]}  Qc6 {[%clk 0:00:38]} 32. a4 {[%clk 0:00:39]}  a6 {[%clk 0:00:36]} 33. Nd4 {[%clk 0:00:36]}  Qxc3 {[%clk 0:00:36]} 34. Rxd5 {[%clk 0:00:36]}  Qxb4 {[%clk 0:00:33]} 35. Rd7+ {[%clk 0:00:35]}  Ke8 {[%clk 0:00:32]} 36. Rd5 {[%clk 0:00:31]}  Qxa4 {[%clk 0:00:32]} 37. Ne6 {[%clk 0:00:31]}  Ke7 {[%clk 0:00:27]} 38. Nc5 {[%clk 0:00:27]}  Qxf4 {[%clk 0:00:22]} 39. Rd7+ {[%clk 0:00:21]}  Ke8 {[%clk 0:00:23]} 40. Rxb7 {[%clk 0:00:12]}  Qe3+ {[%clk 0:00:22]} 0-1


[Site "https://www.chess.com"]